[Event "*** Titled Tuesday Blitz"]
[Site "Chess.com"]
[Date "2020.05.05"]
[Round "5"]
[White "Gennady_Kozlov"]
[Black "Igrok3069"]
[Result "0-1"]
[WhiteElo "2584"]
[BlackElo "2774"]
[TimeControl "180+1"]
[EndTime "10:53:51 PDT"]
[Termination "Igrok3069 won by resignation"]

1. b3 {[%clk 0:02:54.5]} 1... e5 {[%clk 0:02:57.9]} 2. Bb2 {[%clk 0:02:55.4]}
2... Nc6 {[%clk 0:02:57.6]} 3. e3 {[%clk 0:02:56]} 3... g6 {[%clk 0:02:57.8]} 4.
f4 {[%clk 0:02:55.8]} 4... Bg7 {[%clk 0:02:56.6]} 5. Nf3 {[%clk 0:02:56.3]} 5...
d6 {[%clk 0:02:53.2]} 6. Bb5 {[%clk 0:02:56.1]} 6... Ne7 {[%clk 0:02:52.6]} 7.
fxe5 {[%clk 0:02:55.1]} 7... O-O {[%clk 0:02:52.6]} 8. O-O {[%clk 0:02:54.7]}
8... dxe5 {[%clk 0:02:52.1]} 9. e4 {[%clk 0:02:51.6]} 9... Bg4 {[%clk
0:02:48.4]} 10. Nc3 {[%clk 0:02:43.7]} 10... Nd4 {[%clk 0:02:45.3]} 11. Be2
{[%clk 0:02:43.5]} 11... Nxe2+ {[%clk 0:02:38.7]} 12. Nxe2 {[%clk 0:02:40.5]}
12... Nc6 {[%clk 0:02:39.6]} 13. h3 {[%clk 0:02:39.9]} 13... Bxf3 {[%clk
0:02:30.7]} 14. Rxf3 {[%clk 0:02:38.9]} 14... f5 {[%clk 0:02:31.6]} 15. Ng3
{[%clk 0:02:31.2]} 15... f4 {[%clk 0:02:26.4]} 16. Ne2 {[%clk 0:02:30.5]} 16...
g5 {[%clk 0:02:19.5]} 17. c3 {[%clk 0:02:23.9]} 17... Qe8 {[%clk 0:02:17.6]} 18.
Qc2 {[%clk 0:02:22.8]} 18... h5 {[%clk 0:02:15.9]} 19. d4 {[%clk 0:01:55.6]}
19... g4 {[%clk 0:02:15.4]} 20. Rf2 {[%clk 0:01:55.6]} 20... Qg6 {[%clk
0:02:07.1]} 21. d5 {[%clk 0:01:52.9]} 21... Ne7 {[%clk 0:01:59]} 22. Kh1 {[%clk
0:01:52.7]} 22... Nxd5 {[%clk 0:01:55.1]} 23. c4 {[%clk 0:01:48.8]} 23... Ne3
{[%clk 0:01:54.3]} 24. Qc1 {[%clk 0:01:46]} 24... Rad8 {[%clk 0:01:40.7]} 25. g3
{[%clk 0:01:39.8]} 25... Qxe4+ {[%clk 0:01:34.3]} 26. Kh2 {[%clk 0:01:38]} 26...
fxg3+ {[%clk 0:01:30.7]} 0-1

[Event "*** Titled Tuesday Blitz"]
[Site "Chess.com"]
[Date "2020.05.05"]
[Round "5"]
[White "r31415"]
[Black "GigaQuparadze"]
[Result "0-1"]
[WhiteElo "2414"]
[BlackElo "2827"]
[TimeControl "180+1"]
[EndTime "10:54:07 PDT"]
[Termination "GigaQuparadze won by resignation"]

1. e4 {[%clk 0:03:00.9]} 1... c5 {[%clk 0:02:59.6]} 2. Nf3 {[%clk 0:03:01.1]}
2... Nc6 {[%clk 0:02:59.3]} 3. d4 {[%clk 0:03:01.6]} 3... cxd4 {[%clk
0:03:00.2]} 4. Nxd4 {[%clk 0:03:02.4]} 4... Qc7 {[%clk 0:02:58.3]} 5. c4 {[%clk
0:02:52.3]} 5... e6 {[%clk 0:02:55.1]} 6. Nc3 {[%clk 0:02:48.1]} 6... a6 {[%clk
0:02:55.3]} 7. a3 {[%clk 0:02:47.7]} 7... Nf6 {[%clk 0:02:55.1]} 8. Nc2 {[%clk
0:02:39.7]} 8... Bc5 {[%clk 0:02:48.2]} 9. Bd3 {[%clk 0:02:39.1]} 9... Ne5
{[%clk 0:02:43.4]} 10. O-O {[%clk 0:02:24]} 10... Neg4 {[%clk 0:02:37.6]} 11. g3
{[%clk 0:02:23.3]} 11... h5 {[%clk 0:02:37.3]} 12. b4 {[%clk 0:02:10.8]} 12...
Ba7 {[%clk 0:02:37.2]} 13. Bf4 {[%clk 0:02:09.5]} 13... d6 {[%clk 0:02:37.4]}
14. Qe2 {[%clk 0:01:58.1]} 14... h4 {[%clk 0:02:35.7]} 15. Rac1 {[%clk
0:01:53.1]} 15... hxg3 {[%clk 0:02:35.1]} 16. hxg3 {[%clk 0:01:51.6]} 16... Nh2
{[%clk 0:02:24.5]} 17. Rfd1 {[%clk 0:01:46.7]} 17... e5 {[%clk 0:02:23.9]} 18.
Nd5 {[%clk 0:01:37.6]} 18... Qd8 {[%clk 0:02:15.7]} 19. Kg2 {[%clk 0:00:43.9]}
19... Bg4 {[%clk 0:02:12.1]} 20. Qd2 {[%clk 0:00:41.7]} 20... Bf3+ {[%clk
0:02:10.2]} 21. Kg1 {[%clk 0:00:40.9]} 21... Nhg4 {[%clk 0:02:09.7]} 0-1

[Event "*** Titled Tuesday Blitz"]
[Site "Chess.com"]
[Date "2020.05.05"]
[Round "5"]
[White "Stormeman100100"]
[Black "Volovier"]
[Result "0-1"]
[WhiteElo "2532"]
[BlackElo "2717"]
[TimeControl "180+1"]
[EndTime "10:54:08 PDT"]
[Termination "Volovier won by resignation"]

1. e4 {[%clk 0:03:00.3]} 1... d5 {[%clk 0:02:57.8]} 2. exd5 {[%clk 0:02:59.8]}
2... Qxd5 {[%clk 0:02:53.9]} 3. Nc3 {[%clk 0:02:58.2]} 3... Qa5 {[%clk
0:02:53.9]} 4. d4 {[%clk 0:02:54.8]} 4... Nc6 {[%clk 0:02:50.9]} 5. d5 {[%clk
0:02:49.9]} 5... Nb4 {[%clk 0:02:48.9]} 6. Bc4 {[%clk 0:02:42]} 6... Bf5 {[%clk
0:02:43.5]} 7. Bb3 {[%clk 0:02:39.3]} 7... e6 {[%clk 0:02:41.6]} 8. Bd2 {[%clk
0:02:34.4]} 8... c6 {[%clk 0:02:34.1]} 9. dxe6 {[%clk 0:02:23.5]} 9... Bxe6
{[%clk 0:02:32.1]} 10. a3 {[%clk 0:02:13.7]} 10... Qe5+ {[%clk 0:02:28.7]} 11.
Qe2 {[%clk 0:01:59.2]} 11... Qxe2+ {[%clk 0:02:26.1]} 12. Kxe2 {[%clk
0:01:58.7]} 12... Bxb3 {[%clk 0:02:24.8]} 13. cxb3 {[%clk 0:01:59.6]} 13... Nc2
{[%clk 0:02:21.2]} 14. Rd1 {[%clk 0:01:53.5]} 14... Nd4+ {[%clk 0:02:20.2]} 15.
Kd3 {[%clk 0:01:50.1]} 15... O-O-O {[%clk 0:02:19.9]} 16. Nge2 {[%clk
0:01:46.2]} 16... Nxb3+ {[%clk 0:02:17.8]} 17. Kc2 {[%clk 0:01:45.3]} 17... Nxd2
{[%clk 0:02:17.7]} 18. Rxd2 {[%clk 0:01:46.2]} 18... Rxd2+ {[%clk 0:02:17]} 19.
Kxd2 {[%clk 0:01:47.1]} 19... Nf6 {[%clk 0:02:12.6]} 20. Nd4 {[%clk 0:01:43.1]}
20... Bc5 {[%clk 0:02:09.8]} 21. Nf5 {[%clk 0:01:31.2]} 21... Rd8+ {[%clk
0:02:09.8]} 22. Kc2 {[%clk 0:01:29.7]} 22... g6 {[%clk 0:02:06.2]} 23. Ne3
{[%clk 0:01:28.2]} 23... Bxe3 {[%clk 0:02:04]} 24. fxe3 {[%clk 0:01:29.1]} 24...
Ng4 {[%clk 0:02:04.9]} 25. Nd1 {[%clk 0:01:04]} 25... Rxd1 {[%clk 0:01:57.6]}
26. Kxd1 {[%clk 0:01:02.8]} 26... Nf2+ {[%clk 0:01:57.2]} 0-1

[Event "*** Titled Tuesday Blitz"]
[Site "Chess.com"]
[Date "2020.05.05"]
[Round "5"]
[White "VNeimer"]
[Black "Anuar_Is"]
[Result "0-1"]
[WhiteElo "2510"]
[BlackElo "2773"]
[TimeControl "180+1"]
[EndTime "10:54:16 PDT"]
[Termination "Anuar_Is won by resignation"]

1. d4 {[%clk 0:03:00.9]} 1... Nf6 {[%clk 0:02:59.7]} 2. Nf3 {[%clk 0:03:00.5]}
2... g6 {[%clk 0:02:59.9]} 3. g3 {[%clk 0:03:00.7]} 3... Bg7 {[%clk 0:03:00.1]}
4. Bg2 {[%clk 0:03:01.4]} 4... O-O {[%clk 0:03:00.7]} 5. O-O {[%clk 0:03:01.5]}
5... d6 {[%clk 0:03:01.6]} 6. c4 {[%clk 0:03:01.2]} 6... Nbd7 {[%clk 0:03:01.4]}
7. Nc3 {[%clk 0:03:01.2]} 7... e5 {[%clk 0:03:01.8]} 8. b3 {[%clk 0:03:01.4]}
8... Re8 {[%clk 0:03:01]} 9. e4 {[%clk 0:02:54.2]} 9... exd4 {[%clk 0:02:59.5]}
10. Nxd4 {[%clk 0:02:55.1]} 10... Nc5 {[%clk 0:02:59.8]} 11. Re1 {[%clk
0:02:50.8]} 11... Bd7 {[%clk 0:02:58.3]} 12. Bb2 {[%clk 0:02:50.1]} 12... a5
{[%clk 0:02:56.2]} 13. h3 {[%clk 0:02:40.4]} 13... Re5 {[%clk 0:02:47.5]} 14.
Nd5 {[%clk 0:02:17.8]} 14... Nfxe4 {[%clk 0:02:27.9]} 15. Nb5 {[%clk 0:02:03.9]}
15... Rxd5 {[%clk 0:02:04]} 16. cxd5 {[%clk 0:01:54.7]} 16... Bxb2 {[%clk
0:02:02.2]} 17. Rb1 {[%clk 0:01:53.8]} 17... Bg7 {[%clk 0:01:54.9]} 18. Bxe4
{[%clk 0:01:48.9]} 18... Bxb5 {[%clk 0:01:54.5]} 19. Bg2 {[%clk 0:01:43.4]}
19... Qf6 {[%clk 0:01:51.4]} 20. b4 {[%clk 0:01:41.3]} 20... axb4 {[%clk
0:01:50.1]} 21. Rxb4 {[%clk 0:01:42.2]} 21... Rxa2 {[%clk 0:01:42.8]} 22. f4
{[%clk 0:01:35.2]} 22... Bd7 {[%clk 0:01:34]} 23. Qb1 {[%clk 0:01:24.9]} 23...
Ra8 {[%clk 0:01:29.1]} 24. Kh2 {[%clk 0:01:11.8]} 24... h5 {[%clk 0:01:28.3]}
0-1

[Event "*** Titled Tuesday Blitz"]
[Site "Chess.com"]
[Date "2020.05.05"]
[Round "5"]
[White "TERMINATOR_PC"]
[Black "tigra"]
[Result "0-1"]
[WhiteElo "2466"]
[BlackElo "2800"]
[TimeControl "180+1"]
[EndTime "10:54:18 PDT"]
[Termination "tigra won by resignation"]

1. e4 {[%clk 0:03:00.9]} 1... c5 {[%clk 0:02:57.8]} 2. Nc3 {[%clk 0:03:01]} 2...
Nc6 {[%clk 0:02:55.9]} 3. g3 {[%clk 0:03:01.4]} 3... g6 {[%clk 0:02:54.7]} 4.
Bg2 {[%clk 0:03:02]} 4... Bg7 {[%clk 0:02:55.4]} 5. d3 {[%clk 0:03:02.9]} 5...
e6 {[%clk 0:02:55.6]} 6. Be3 {[%clk 0:03:03.4]} 6... d6 {[%clk 0:02:54]} 7. Qd2
{[%clk 0:03:03.9]} 7... Rb8 {[%clk 0:02:52.5]} 8. Nge2 {[%clk 0:03:03.2]} 8...
b5 {[%clk 0:02:50.4]} 9. O-O {[%clk 0:03:03.5]} 9... b4 {[%clk 0:02:50.3]} 10.
Nd1 {[%clk 0:03:03.8]} 10... a5 {[%clk 0:02:47.9]} 11. f4 {[%clk 0:03:01.6]}
11... Nge7 {[%clk 0:02:47.3]} 12. f5 {[%clk 0:03:01.9]} 12... exf5 {[%clk
0:02:45.6]} 13. Bh6 {[%clk 0:03:02.5]} 13... O-O {[%clk 0:02:44.7]} 14. Bxg7
{[%clk 0:02:50]} 14... Kxg7 {[%clk 0:02:45.6]} 15. exf5 {[%clk 0:02:47.1]} 15...
Bxf5 {[%clk 0:02:43.8]} 16. Rxf5 {[%clk 0:01:25]} 16... gxf5 {[%clk 0:02:43.6]}
17. Bxc6 {[%clk 0:01:25.5]} 17... Nxc6 {[%clk 0:02:43.6]} 18. Ne3 {[%clk
0:01:25.2]} 18... Qf6 {[%clk 0:02:26.6]} 19. Rf1 {[%clk 0:01:23.2]} 19... Kh8
{[%clk 0:02:19.8]} 20. Nxf5 {[%clk 0:01:15.4]} 20... Rbe8 {[%clk 0:02:18.7]} 21.
c3 {[%clk 0:01:07]} 21... bxc3 {[%clk 0:02:11.5]} 22. bxc3 {[%clk 0:01:07.9]}
22... Re5 {[%clk 0:02:03.8]} 23. g4 {[%clk 0:00:54.3]} 23... Rg8 {[%clk
0:02:03.3]} 24. h3 {[%clk 0:00:43]} 24... Rxf5 {[%clk 0:02:02.7]} 0-1

[Event "*** Titled Tuesday Blitz"]
[Site "Chess.com"]
[Date "2020.05.05"]
[Round "5"]
[White "Nastya_Rakhmangulova"]
[Black "larisakalinina"]
[Result "1-0"]
[WhiteElo "2295"]
[BlackElo "2039"]
[TimeControl "180+1"]
[EndTime "10:54:39 PDT"]
[Termination "Nastya_Rakhmangulova won by resignation"]

1. e4 {[%clk 0:03:00.9]} 1... c5 {[%clk 0:02:59.6]} 2. Nf3 {[%clk 0:03:01]} 2...
Nc6 {[%clk 0:02:59.1]} 3. d4 {[%clk 0:03:00.6]} 3... cxd4 {[%clk 0:02:59.4]} 4.
Nxd4 {[%clk 0:03:01.5]} 4... Nf6 {[%clk 0:02:58.2]} 5. Nc3 {[%clk 0:03:01.5]}
5... d6 {[%clk 0:02:58.3]} 6. Bg5 {[%clk 0:03:01]} 6... h6 {[%clk 0:02:56.2]} 7.
Bxf6 {[%clk 0:02:41.5]} 7... gxf6 {[%clk 0:02:57.1]} 8. Qd2 {[%clk 0:02:37.6]}
8... Rg8 {[%clk 0:02:52]} 9. O-O-O {[%clk 0:02:34]} 9... Nxd4 {[%clk 0:02:51]}
10. Qxd4 {[%clk 0:02:33.9]} 10... f5 {[%clk 0:02:50.5]} 11. e5 {[%clk
0:01:46.2]} 11... Bg7 {[%clk 0:02:42.6]} 12. f4 {[%clk 0:01:46.3]} 12... Bd7
{[%clk 0:02:28.1]} 13. Qb4 {[%clk 0:01:39.5]} 13... dxe5 {[%clk 0:02:16.2]} 14.
Bb5 {[%clk 0:01:37.4]} 14... a5 {[%clk 0:01:28.2]} 15. Qa4 {[%clk 0:01:34.6]}
15... Kf8 {[%clk 0:01:26]} 16. Rxd7 {[%clk 0:01:25.3]} 16... Qb6 {[%clk
0:01:25.7]} 17. Qa3 {[%clk 0:00:57.5]} 17... Qe3+ {[%clk 0:01:23.9]} 18. Kb1
{[%clk 0:00:57.1]} 18... exf4 {[%clk 0:01:23.7]} 19. Nd5 {[%clk 0:00:52.7]}
19... Qe5 {[%clk 0:01:17.8]} 20. Nxe7 {[%clk 0:00:51.5]} 1-0

[Event "*** Titled Tuesday Blitz"]
[Site "Chess.com"]
[Date "2020.05.05"]
[Round "5"]
[White "kinga2008"]
[Black "drinbet"]
[Result "0-1"]
[WhiteElo "2101"]
[BlackElo "2311"]
[TimeControl "180+1"]
[EndTime "10:54:49 PDT"]
[Termination "drinbet won by resignation"]

1. e4 {[%clk 0:02:59.6]} 1... c5 {[%clk 0:02:57.8]} 2. Nf3 {[%clk 0:02:59]} 2...
e6 {[%clk 0:02:58]} 3. c3 {[%clk 0:02:59.4]} 3... d5 {[%clk 0:02:57.2]} 4. Bd3
{[%clk 0:02:59.3]} 4... Nf6 {[%clk 0:02:55.1]} 5. e5 {[%clk 0:02:58.7]} 5...
Nfd7 {[%clk 0:02:54.9]} 6. Bc2 {[%clk 0:02:58]} 6... d4 {[%clk 0:02:53.6]} 7.
cxd4 {[%clk 0:02:56.7]} 7... cxd4 {[%clk 0:02:53.4]} 8. O-O {[%clk 0:02:57.2]}
8... Nc6 {[%clk 0:02:52.7]} 9. Re1 {[%clk 0:02:57.1]} 9... Bc5 {[%clk
0:02:50.3]} 10. d3 {[%clk 0:02:56.2]} 10... O-O {[%clk 0:02:49.9]} 11. Bf4
{[%clk 0:02:55.2]} 11... b6 {[%clk 0:02:47.6]} 12. a3 {[%clk 0:02:52.6]} 12...
Bb7 {[%clk 0:02:46.5]} 13. Nbd2 {[%clk 0:02:47.8]} 13... Re8 {[%clk 0:02:44.4]}
14. Ne4 {[%clk 0:02:45.5]} 14... Nf8 {[%clk 0:02:43.2]} 15. Nxc5 {[%clk
0:02:42.2]} 15... bxc5 {[%clk 0:02:42.7]} 16. Ng5 {[%clk 0:02:42.7]} 16... Ng6
{[%clk 0:02:40.7]} 17. Qh5 {[%clk 0:02:27.7]} 17... h6 {[%clk 0:02:25]} 18. Nh3
{[%clk 0:02:22]} 18... Nxf4 {[%clk 0:02:19]} 19. Nxf4 {[%clk 0:02:22.9]} 19...
Rb8 {[%clk 0:01:58.3]} 20. Nh3 {[%clk 0:02:17.2]} 20... Ne7 {[%clk 0:01:56.1]}
21. f4 {[%clk 0:02:11.6]} 21... Nf5 {[%clk 0:01:53.4]} 22. g4 {[%clk 0:02:05.1]}
22... Ne3 {[%clk 0:01:50.1]} 23. Ba4 {[%clk 0:01:56.9]} 23... Qd5 {[%clk
0:01:45.5]} 24. Re2 {[%clk 0:01:45.3]} 24... Qh1+ {[%clk 0:01:39]} 25. Kf2
{[%clk 0:01:44.3]} 25... Qg2+ {[%clk 0:01:38.8]} 26. Ke1 {[%clk 0:01:43.6]}
26... Qf1+ {[%clk 0:01:36.7]} 27. Kd2 {[%clk 0:01:41.1]} 27... Qxa1 {[%clk
0:01:34.9]} 28. g5 {[%clk 0:01:41]} 28... Bf3 {[%clk 0:01:27.3]} 29. Qxf3 {[%clk
0:00:48.3]} 0-1

[Event "*** Titled Tuesday Blitz"]
[Site "Chess.com"]
[Date "2020.05.05"]
[Round "5"]
[White "Marty435"]
[Black "Gandrade2"]
[Result "1-0"]
[WhiteElo "2517"]
[BlackElo "2018"]
[TimeControl "180+1"]
[EndTime "10:54:49 PDT"]
[Termination "Marty435 won by resignation"]

1. d4 {[%clk 0:03:00.9]} 1... d5 {[%clk 0:02:59.3]} 2. Bf4 {[%clk 0:03:00.1]}
2... Nf6 {[%clk 0:02:59.1]} 3. e3 {[%clk 0:03:00]} 3... c5 {[%clk 0:02:59.5]} 4.
c3 {[%clk 0:02:59.8]} 4... Nc6 {[%clk 0:03:00]} 5. Nd2 {[%clk 0:02:59.8]} 5...
Bf5 {[%clk 0:02:59.2]} 6. Qb3 {[%clk 0:02:59.6]} 6... Qd7 {[%clk 0:02:59.6]} 7.
Ngf3 {[%clk 0:02:59.3]} 7... c4 {[%clk 0:02:58.8]} 8. Qd1 {[%clk 0:02:58.6]}
8... e6 {[%clk 0:02:55.1]} 9. Be2 {[%clk 0:02:51]} 9... Bd6 {[%clk 0:02:52.6]}
10. O-O {[%clk 0:02:44.2]} 10... O-O {[%clk 0:02:48.5]} 11. Ne5 {[%clk
0:02:40.1]} 11... Qc7 {[%clk 0:02:39.8]} 12. Ndf3 {[%clk 0:02:36.5]} 12... Bg4
{[%clk 0:02:24.8]} 13. Nxg4 {[%clk 0:02:34.6]} 13... Nxg4 {[%clk 0:02:24.7]} 14.
Bxd6 {[%clk 0:02:34.8]} 14... Qxd6 {[%clk 0:02:22.8]} 15. h3 {[%clk 0:02:35.4]}
15... Nf6 {[%clk 0:02:22.7]} 16. b4 {[%clk 0:02:30.8]} 16... b5 {[%clk
0:02:07.2]} 17. a4 {[%clk 0:02:30]} 17... a6 {[%clk 0:02:07.3]} 18. Ra3 {[%clk
0:02:28.2]} 18... a5 {[%clk 0:01:55.8]} 19. axb5 {[%clk 0:02:28.1]} 19... Ne7
{[%clk 0:01:40.9]} 20. Rxa5 {[%clk 0:02:26.4]} 20... Rxa5 {[%clk 0:01:39.3]} 21.
bxa5 {[%clk 0:02:27.3]} 21... Ra8 {[%clk 0:01:24.2]} 22. Qa1 {[%clk 0:02:25.6]}
22... Nd7 {[%clk 0:01:21.6]} 23. Rb1 {[%clk 0:02:23.9]} 23... f6 {[%clk
0:01:14.9]} 24. Bd1 {[%clk 0:02:19.1]} 24... Kf7 {[%clk 0:00:56.3]} 25. Bc2
{[%clk 0:02:17.2]} 25... g6 {[%clk 0:00:56]} 26. e4 {[%clk 0:02:13.6]} 26... Kg7
{[%clk 0:00:34.8]} 27. Qa4 {[%clk 0:02:08.5]} 27... Qc7 {[%clk 0:00:23.9]} 28.
b6 {[%clk 0:02:08.1]} 28... Qd8 {[%clk 0:00:17.1]} 29. exd5 {[%clk 0:02:05.7]}
29... Nxb6 {[%clk 0:00:15.2]} 30. Rxb6 {[%clk 0:02:04.1]} 30... Qxb6 {[%clk
0:00:14.3]} 31. axb6 {[%clk 0:02:04.4]} 31... Rxa4 {[%clk 0:00:14.8]} 32. Bxa4
{[%clk 0:02:03.3]} 1-0

[Event "*** Titled Tuesday Blitz"]
[Site "Chess.com"]
[Date "2020.05.05"]
[Round "5"]
[White "DonPreuss"]
[Black "sjevtic"]
[Result "1-0"]
[WhiteElo "2183"]
[BlackElo "2292"]
[TimeControl "180+1"]
[EndTime "10:54:53 PDT"]
[Termination "DonPreuss won by resignation"]

1. Nc3 {[%clk 0:03:00.9]} 1... d5 {[%clk 0:02:58.2]} 2. e4 {[%clk 0:03:01]} 2...
dxe4 {[%clk 0:02:58.4]} 3. f3 {[%clk 0:03:00.2]} 3... exf3 {[%clk 0:02:54.5]} 4.
Nxf3 {[%clk 0:03:00.3]} 4... Nf6 {[%clk 0:02:55]} 5. d4 {[%clk 0:03:00.5]} 5...
e6 {[%clk 0:02:55.2]} 6. Bd3 {[%clk 0:03:00.6]} 6... Be7 {[%clk 0:02:55.4]} 7.
O-O {[%clk 0:03:00.7]} 7... O-O {[%clk 0:02:55.8]} 8. Qe1 {[%clk 0:03:01.1]}
8... Nbd7 {[%clk 0:02:54]} 9. Qh4 {[%clk 0:03:00.9]} 9... c5 {[%clk 0:02:46.8]}
10. Bg5 {[%clk 0:02:54.3]} 10... g6 {[%clk 0:02:38]} 11. Ne4 {[%clk 0:02:12.5]}
11... cxd4 {[%clk 0:02:13.2]} 12. Ne5 {[%clk 0:01:54]} 12... Kg7 {[%clk
0:01:17.7]} 13. Nxd7 {[%clk 0:01:37.2]} 13... Nxe4 {[%clk 0:00:17.8]} 14. Bxe7
{[%clk 0:01:34.5]} 14... Qxd7 {[%clk 0:00:16.8]} 15. Bxe4 {[%clk 0:01:28.5]} 1-0

[Event "*** Titled Tuesday Blitz"]
[Site "Chess.com"]
[Date "2020.05.05"]
[Round "5"]
[White "silverback96"]
[Black "davigator"]
[Result "1-0"]
[WhiteElo "2128"]
[BlackElo "2301"]
[TimeControl "180+1"]
[EndTime "10:54:54 PDT"]
[Termination "silverback96 won by resignation"]

1. Nf3 {[%clk 0:03:00.9]} 1... d5 {[%clk 0:02:58.3]} 2. g3 {[%clk 0:03:01.5]}
2... Bg4 {[%clk 0:02:56.2]} 3. Bg2 {[%clk 0:03:01.7]} 3... Nd7 {[%clk
0:02:56.2]} 4. h3 {[%clk 0:02:59.5]} 4... Bh5 {[%clk 0:02:52.9]} 5. d4 {[%clk
0:02:56.9]} 5... c6 {[%clk 0:02:52.6]} 6. O-O {[%clk 0:02:56.2]} 6... e6 {[%clk
0:02:52.7]} 7. c4 {[%clk 0:02:55.2]} 7... Ngf6 {[%clk 0:02:50.3]} 8. Nc3 {[%clk
0:02:54.6]} 8... Be7 {[%clk 0:02:50.3]} 9. Nh4 {[%clk 0:02:18.6]} 9... Nb6
{[%clk 0:02:42]} 10. g4 {[%clk 0:02:13.2]} 10... Nfd7 {[%clk 0:02:38.7]} 11.
gxh5 {[%clk 0:02:02.1]} 11... Bxh4 {[%clk 0:02:38]} 12. c5 {[%clk 0:02:02.3]}
12... Nc8 {[%clk 0:02:37.5]} 13. e4 {[%clk 0:02:02.4]} 13... b6 {[%clk
0:02:35.7]} 14. Qg4 {[%clk 0:01:53.6]} 14... g6 {[%clk 0:02:30.1]} 15. exd5
{[%clk 0:01:46.2]} 15... cxd5 {[%clk 0:02:28.8]} 16. Nxd5 {[%clk 0:01:24.6]}
16... exd5 {[%clk 0:02:27.8]} 17. Bxd5 {[%clk 0:01:25.5]} 17... Rb8 {[%clk
0:02:27.8]} 18. c6 {[%clk 0:01:18.7]} 18... Nf6 {[%clk 0:02:22.3]} 19. Re1+
{[%clk 0:01:03.9]} 19... Ne7 {[%clk 0:02:08.7]} 20. Qxh4 {[%clk 0:00:54.8]}
20... Nxd5 {[%clk 0:02:07]} 21. Bg5 {[%clk 0:00:38.9]} 21... Kf8 {[%clk
0:01:58.3]} 22. Re5 {[%clk 0:00:33.8]} 22... f6 {[%clk 0:01:55.9]} 23. Bxf6
{[%clk 0:00:33.5]} 23... Qd6 {[%clk 0:01:49.7]} 24. Bxh8 {[%clk 0:00:27.8]}
24... Nf5 {[%clk 0:01:49.8]} 25. Qf4 {[%clk 0:00:22.2]} 25... Kf7 {[%clk
0:01:49.8]} 26. Rxf5+ {[%clk 0:00:20.9]} 1-0

[Event "*** Titled Tuesday Blitz"]
[Site "Chess.com"]
[Date "2020.05.05"]
[Round "5"]
[White "DLR7"]
[Black "Kostya26"]
[Result "1-0"]
[WhiteElo "2686"]
[BlackElo "2439"]
[TimeControl "180+1"]
[EndTime "10:54:56 PDT"]
[Termination "DLR7 won by resignation"]

1. e4 {[%clk 0:03:00.9]} 1... c5 {[%clk 0:02:55.8]} 2. Nf3 {[%clk 0:02:59.6]}
2... Nc6 {[%clk 0:02:55.8]} 3. b3 {[%clk 0:02:57.5]} 3... e5 {[%clk 0:02:55.7]}
4. Bb2 {[%clk 0:02:54.4]} 4... d6 {[%clk 0:02:56.1]} 5. Bc4 {[%clk 0:02:51.8]}
5... Be7 {[%clk 0:02:56]} 6. O-O {[%clk 0:02:48.8]} 6... Nf6 {[%clk 0:02:55.8]}
7. Nc3 {[%clk 0:02:47.6]} 7... O-O {[%clk 0:02:56.1]} 8. h3 {[%clk 0:02:43.2]}
8... h6 {[%clk 0:02:54]} 9. d3 {[%clk 0:02:33.8]} 9... Be6 {[%clk 0:02:49.6]}
10. Nd5 {[%clk 0:02:31.6]} 10... Qd7 {[%clk 0:02:44.7]} 11. Ne3 {[%clk
0:02:29.4]} 11... Kh8 {[%clk 0:02:14.8]} 12. Re1 {[%clk 0:02:20.9]} 12... g6
{[%clk 0:01:48.9]} 13. c3 {[%clk 0:02:17.5]} 13... Kh7 {[%clk 0:01:45.3]} 14.
Qd2 {[%clk 0:02:10]} 14... Nh5 {[%clk 0:01:37.4]} 15. d4 {[%clk 0:02:07.2]}
15... cxd4 {[%clk 0:01:37.1]} 16. cxd4 {[%clk 0:02:04.8]} 16... exd4 {[%clk
0:01:22.9]} 17. Nxd4 {[%clk 0:02:02.8]} 17... Nxd4 {[%clk 0:01:10.9]} 18. Qxd4
{[%clk 0:02:02.3]} 18... Bf6 {[%clk 0:01:08.6]} 19. Qd2 {[%clk 0:02:02.8]} 19...
Bxb2 {[%clk 0:01:08]} 20. Qxb2 {[%clk 0:02:02.9]} 20... Bxc4 {[%clk 0:00:56.3]}
21. Nxc4 {[%clk 0:02:00.6]} 21... Qe6 {[%clk 0:00:52.3]} 22. Rad1 {[%clk
0:01:58]} 22... Rad8 {[%clk 0:00:52.1]} 23. Qd4 {[%clk 0:01:57.8]} 23... f5
{[%clk 0:00:45.4]} 24. exf5 {[%clk 0:01:54.5]} 24... Qxf5 {[%clk 0:00:46.3]} 25.
Re7+ {[%clk 0:01:52.4]} 25... Rf7 {[%clk 0:00:45.4]} 26. g4 {[%clk 0:01:31.8]}
26... Qf3 {[%clk 0:00:40.7]} 27. Rd3 {[%clk 0:01:32]} 1-0

[Event "*** Titled Tuesday Blitz"]
[Site "Chess.com"]
[Date "2020.05.05"]
[Round "5"]
[White "Gerasimenyuk_Miha"]
[Black "chessdjw"]
[Result "0-1"]
[WhiteElo "2360"]
[BlackElo "2659"]
[TimeControl "180+1"]
[EndTime "10:55:01 PDT"]
[Termination "chessdjw won by resignation"]

1. d4 {[%clk 0:03:00.9]} 1... Nf6 {[%clk 0:02:59.6]} 2. Nf3 {[%clk 0:02:57.8]}
2... g6 {[%clk 0:03:00]} 3. Bg5 {[%clk 0:02:57.2]} 3... Bg7 {[%clk 0:03:00.1]}
4. Nbd2 {[%clk 0:02:56.2]} 4... O-O {[%clk 0:03:00.7]} 5. e3 {[%clk 0:02:56.6]}
5... d6 {[%clk 0:03:00.7]} 6. Bd3 {[%clk 0:02:56.7]} 6... c5 {[%clk 0:03:01.4]}
7. c3 {[%clk 0:02:56]} 7... b6 {[%clk 0:03:01.8]} 8. h4 {[%clk 0:02:56]} 8...
Bb7 {[%clk 0:02:59.5]} 9. h5 {[%clk 0:02:55.9]} 9... Nxh5 {[%clk 0:02:59]} 10.
Rxh5 {[%clk 0:02:55.3]} 10... gxh5 {[%clk 0:02:59.1]} 11. Nh4 {[%clk 0:02:55.3]}
11... Qd7 {[%clk 0:02:27.9]} 12. Qxh5 {[%clk 0:02:41.6]} 12... f5 {[%clk
0:02:28.3]} 13. Bh6 {[%clk 0:02:30.9]} 13... e6 {[%clk 0:02:27.8]} 14. O-O-O
{[%clk 0:02:26.4]} 14... Qf7 {[%clk 0:02:22.8]} 15. Qg5 {[%clk 0:02:23]} 15...
Qf6 {[%clk 0:02:23]} 16. Qxf6 {[%clk 0:02:11.2]} 16... Rxf6 {[%clk 0:02:23.9]}
17. Bxg7 {[%clk 0:02:10.7]} 17... Kxg7 {[%clk 0:02:22.8]} 18. dxc5 {[%clk
0:02:10.4]} 18... bxc5 {[%clk 0:02:21]} 19. Ndf3 {[%clk 0:02:10.2]} 19... Nc6
{[%clk 0:02:12.5]} 20. Rh1 {[%clk 0:02:02.8]} 20... a5 {[%clk 0:02:05.6]} 21.
Ng5 {[%clk 0:01:59.8]} 21... h6 {[%clk 0:02:04.4]} 22. Nh3 {[%clk 0:01:58.7]}
22... Ne5 {[%clk 0:01:58.8]} 23. Bc2 {[%clk 0:01:49]} 23... Ng4 {[%clk
0:01:58.8]} 24. Rf1 {[%clk 0:01:38.3]} 24... Be4 {[%clk 0:01:42]} 25. Nf4 {[%clk
0:01:32.6]} 25... Kh7 {[%clk 0:01:41.4]} 26. Nh5 {[%clk 0:01:23.1]} 26... Rff8
{[%clk 0:01:37.4]} 27. Bb3 {[%clk 0:01:09.9]} 27... Bd3 {[%clk 0:01:37]} 28. Re1
{[%clk 0:01:02.2]} 28... c4 {[%clk 0:01:37.1]} 29. Bc2 {[%clk 0:00:58.3]} 29...
Nxf2 {[%clk 0:01:37]} 30. Nf4 {[%clk 0:00:54.3]} 30... e5 {[%clk 0:01:32.9]} 31.
Ne6 {[%clk 0:00:48.5]} 31... Rf7 {[%clk 0:01:26.6]} 0-1